fUST/lending_fUST_20251008
["ID","MTS","AMOUNT","RATE_DAILY","PERIOD"]
[389854464,1759872642432,-151.0,0.00022997,7]
[389854465,1759872642442,-151.0,0.00022997,7]
[389854466,1759872642452,-1099.15883905,0.00023,2]
[389854467,1759872642461,-160.0,0.00023,7]
[389854468,1759872642471,-166.0,0.00023,3]
[389854469,1759872642480,-166.0,0.00023,3]
[389854470,1759872642490,-166.0,0.00023,3]
[389854471,1759872642500,-172.0,0.00023,3]
[389854472,1759872642509,-1454.84368294,0.00023,7]
[389854473,1759872642520,-151.0,0.00023,7]
[389854474,1759872642529,-151.0,0.00023,7]
[389854475,1759872642539,-151.0,0.00023,7]
[389854476,1759872642548,-402.02512307,0.00023,7]
[389854477,1759872642557,-246.344456,0.00023,7]
[389854478,1759872642567,-533.72506543,0.00023,7]
[389854479,1759872642576,-151.0,0.00023,7]
[389854480,1759872642585,-151.0,0.00023,7]
[389854481,1759872642595,-151.0,0.00023,7]
[389854482,1759872642605,-151.0,0.00023,7]
[389854483,1759872642615,-151.0,0.00023,7]
[389854484,1759872642624,-299.0,0.00023,7]
[389854485,1759872642634,-151.0,0.00023,7]
[389854486,1759872642643,-173.31412,0.00023,7]
[389854487,1759872642652,-160.0,0.00023,2]
[389854488,1759872642662,-151.0,0.00023,7]
[389854489,1759872642671,-1000.0,0.00023,2]
[389854490,1759872642681,-500.0,0.00023,8]
[389854491,1759872642690,-151.0,0.00023,7]
[389854492,1759872642700,-151.0,0.00023,7]
[389854493,1759872642709,-151.0,0.00023,7]
[389854494,1759872642719,-151.0,0.00023,7]
[389854495,1759872642728,-151.0,0.00023,7]
[389854496,1759872642737,-151.0,0.00023,7]
[389854497,1759872642746,-151.0,0.00023,7]
[389854498,1759872642756,-151.0,0.00023,7]
[389854499,1759872642765,-225.368793,0.00023,7]
[389854500,1759872642775,-5318.00114445,0.00023,2]
[389854501,1759872642784,-316898.89964367,0.00023,7]
[389854502,1759872642795,-2717.758851,0.00023,7]
[389854503,1759872642804,-2717.758851,0.00023,7]
[389854504,1759872642813,-2717.758851,0.00023,7]
[389854505,1759872642823,-2717.758851,0.00023,7]
[389854506,1759872642832,-2717.758851,0.00023,7]
[389854507,1759872642842,-2717.758851,0.00023,7]
[389854508,1759872642852,-2717.758851,0.00023,7]
[389854509,1759872642861,-2717.75885,0.00023,7]
[389854510,1759872642871,-5297.35017318,0.00023,2]
[389854548,1759872644116,-454.3182954,0.00019845,4]
[389854549,1759872644125,-12702.31287802,0.00023,2]
[389854550,1759872644135,-151.0,0.00023013,7]
[389854551,1759872644144,-151.0,0.00023013,7]
[389854552,1759872644154,-151.0,0.00023013,7]
[389854553,1759872644163,-151.0,0.00023013,7]
[389854554,1759872644173,-7204.89,0.00023013,2]
[389854555,1759872644183,-261.5905832,0.00023014,2]
[389854556,1759872644193,-168.0,0.000231,2]
[389854557,1759872644203,-823.0,0.00023101,2]
[389854558,1759872644213,-3500.0,0.00023113,2]
[389854559,1759872644222,-168.0,0.00023115,2]
[389854560,1759872644231,-151.0,0.00023141,2]
[389854561,1759872644243,-287.94012382,0.00023141,2]
[389854562,1759872644252,-151.0,0.00023141,2]
[389854563,1759872644262,-500.0,0.00023141,2]
[389854564,1759872644272,-723.0,0.00023141,2]
[389854565,1759872644282,-500.0,0.00023141,2]
[389854566,1759872644292,-500.0,0.00023141,2]
[389854567,1759872644302,-151.0,0.00023141,2]
[389854568,1759872644312,-500.0,0.00023141,2]
[389854569,1759872644324,-151.0,0.00023141,2]
[389854570,1759872644334,-11.48181375,0.00023141,2]
[389854571,1759872644345,-488.51818625,0.00023141,2]
[389854572,1759872644356,-500.0,0.00023141,2]
[389854573,1759872644366,-500.0,0.00023141,2]
[389854574,1759872644375,-151.0,0.00023141,2]
[389854575,1759872644385,-500.0,0.00023141,2]
[389854576,1759872644395,-500.0,0.00023141,2]
[389854577,1759872644405,-151.0,0.00023141,2]
[389854578,1759872644414,-500.0,0.00023141,2]
[389854579,1759872644423,-151.0,0.00023141,2]
[389854580,1759872644433,-151.0,0.00023141,2]
[389854581,1759872644443,-500.0,0.00023141,2]
[389854582,1759872644452,-500.0,0.00023141,2]
[389854583,1759872644461,-500.0,0.00023141,2]
[389854584,1759872644471,-869.90864063,0.00023145,2]
[389854585,1759872644482,-500.0,0.00023145,2]
[389854586,1759872644491,-500.0,0.00023145,2]
[389854587,1759872644501,-500.0,0.00023145,2]
[389854588,1759872644511,-500.0,0.00023159,2]
[389854589,1759872644521,-168.0,0.00023188,2]
[389854590,1759872644531,-500.0,0.00023197,2]
[389854591,1759872644540,-500.0,0.00023197,2]
[389854592,1759872644550,-500.0,0.00023197,2]
[389854593,1759872644560,-500.0,0.00023197,2]
[389854594,1759872644569,-500.0,0.00023197,2]
[389854595,1759872644579,-500.0,0.00023197,2]
[389854596,1759872644588,-500.0,0.00023197,2]
[389854597,1759872644598,-1099.15883905,0.000232,2]
[389854598,1759872644607,-168.0,0.00023229,2]
[389854599,1759872644616,-500.0,0.00023248,2]
[389854600,1759872644626,-500.0,0.0002325,2]
[389854601,1759872644636,-500.0,0.00023257,2]
[389854602,1759872644646,-500.0,0.00023257,2]
[389854603,1759872644656,-189.5827141,0.0002326,2]
[389854604,1759872644666,-500.0,0.00023271,2]
[389854605,1759872644676,-242.49061382,0.00023285,22]
[389854606,1759872644685,-500.0,0.00023287,2]
[389854607,1759872644694,-168.0,0.00023297,2]
[389854608,1759872644915,-4499.9,0.000233,2]
[389854609,1759872644936,-168.0,0.00023387,2]
[389854610,1759872644947,-501.34046041,0.00023396,2]
[389854611,1759872644956,-500.0,0.00023396,2]
[389854612,1759872644966,-500.0,0.00023396,2]
[389854613,1759872644976,-500.0,0.00023396,2]
[389854614,1759872644985,-500.0,0.00023396,2]
[389854615,1759872644995,-500.0,0.00023409,2]
[389854616,1759872645004,-1000.0,0.00023409,4]
[389854617,1759872645014,-151.0,0.00023415,2]
[389854618,1759872645025,-229.58133571,0.00023415,2]
[389854619,1759872645036,-500.0,0.00023415,2]
[389854620,1759872645046,-723.0,0.00023415,2]
[389854621,1759872645056,-500.0,0.00023415,2]
[389854622,1759872645066,-500.0,0.00023415,2]
[389854623,1759872645076,-151.0,0.00023415,2]
[389854624,1759872645086,-500.0,0.00023415,2]
[389854625,1759872645095,-151.0,0.00023415,2]
[389854626,1759872645105,-162.51351402,0.00023415,2]
[389854627,1759872645115,-500.0,0.00023415,2]
[389854628,1759872645125,-500.0,0.00023415,2]
[389854629,1759872645135,-151.0,0.00023415,2]
[389854630,1759872645144,-500.0,0.00023415,2]
[389854631,1759872645154,-500.0,0.00023415,2]
[389854632,1759872645164,-151.0,0.00023415,2]
[389854633,1759872645174,-386.42674795,0.00023415,2]
[389854634,1759872645184,-151.0,0.00023415,2]
[389854635,1759872645194,-151.0,0.00023415,2]
[389854636,1759872645204,-500.0,0.00023415,2]
[389854637,1759872645214,-500.0,0.00023415,2]
[389854638,1759872645225,-500.0,0.00023415,2]
[389854639,1759872645235,-500.0,0.00023423,2]
[389854640,1759872645250,-194.0,0.00023426,2]
[389854641,1759872645260,-168.0,0.00023469,2]
[389854642,1759872645272,-1000.0,0.000235,2]
[389854643,1759872645283,-1099.15883905,0.000235,2]
[389854644,1759872645294,-700.39880727,0.00023521,2]
[389854645,1759872645304,-576.74277249,0.00023521,2]
[389854646,1759872645316,-1000.0,0.00023522,2]
[389854647,1759872645326,-1000.0,0.00023522,2]
[389854648,1759872645336,-1000.0,0.00023522,2]
[389854649,1759872645346,-500.0,0.00023522,2]
[389854650,1759872645356,-960.0,0.00023522,2]
[389854651,1759872645365,-242.49061382,0.00023569,23]
[389854652,1759872645375,-375.0,0.00023583,2]
[389854653,1759872645384,-162.0,0.00023616,10]
[389854654,1759872645394,-6453.48487703,0.00023616,2]
[389854655,1759872645403,-190.82420959,0.00023643,4]
[389854656,1759872645413,-642.642,0.00023646,4]
[389854657,1759872645423,-4000.0,0.00023661,2]
[389854658,1759872645432,-800.0,0.0002368,2]
[389854659,1759872645443,-151.0,0.00023689,2]
[389854660,1759872645452,-198.02716197,0.00023689,2]
[389854661,1759872645462,-270.02283029,0.00023689,2]
[389854662,1759872645485,-452.97716971,0.00023689,2]
[389854663,1759872645495,-302.0,0.00023689,2]
[389854664,1759872645505,-500.0,0.00023689,2]
[389854665,1759872645514,-245.0,0.00023689,2]
[389854666,1759872645525,-500.0,0.00023689,2]
[389854667,1759872645535,-227.41664672,0.00023689,2]
[389854668,1759872645545,-500.0,0.00023689,2]
[389854669,1759872645554,-441.8798321,0.00023689,2]
[389854670,1759872645563,-151.0,0.00023689,2]
[389854671,1759872645573,-547.0,0.00023689,2]
[389854672,1759872645582,-500.0,0.00023689,2]
[389854673,1759872645592,-151.0,0.00023689,2]
[389854674,1759872645602,-151.0,0.00023689,2]
[389854675,1759872645611,-500.0,0.00023689,2]
[389854676,1759872645621,-500.0,0.00023689,2]
[389854677,1759872645631,-500.0,0.00023689,2]
[389854678,1759872645641,-155.275558,0.00023689,7]
[389854679,1759872645651,-151.0,0.00023689,7]
[389854680,1759872645661,-1000.0,0.00023693,2]
[389854681,1759872645670,-1000.0,0.00023693,2]
[389854682,1759872645680,-846.44608376,0.00023693,2]
[389854683,1759872645689,-1099.15883905,0.000237,2]
[389854684,1759872645699,-151.0,0.000237,7]
[389854685,1759872645708,-337.54455192,0.000237,7]
[389854728,1759872646344,-500.0,0.00023287,2]
[389854730,1759872646353,-64.48057115,0.000237,7]
[389854732,1759872646363,-533.72506543,0.000237,7]
[389854734,1759872646372,-151.0,0.00023705,7]
[389854736,1759872646381,-281.881846,0.00023705,7]
[389854738,1759872646391,-151.0,0.00023705,7]
[389854740,1759872646401,-151.0,0.00023705,7]
[389854742,1759872646411,-261.69459,0.00023707,2]
[389854745,1759872646433,-738.30541,0.00023707,2]
[389854748,1759872646443,-151.0,0.00023707,7]
[389854750,1759872646452,-151.0,0.00023707,7]
[389854752,1759872646462,-151.0,0.00023707,7]
[389854754,1759872646472,-151.0,0.00023707,7]
[389854756,1759872646482,-151.0,0.00023707,7]
[389854758,1759872646491,-151.0,0.00023714,7]
[389854760,1759872646500,-151.0,0.00023714,7]
[389854762,1759872646510,-151.0,0.00023714,7]
[389854764,1759872646519,-156.171134,0.00023714,7]
[389854766,1759872646529,-168.0,0.00023718,2]
[389854768,1759872646538,-168.0,0.00023731,2]
[389854770,1759872646548,-800.0,0.00023732,2]
[389854772,1759872646557,-225.015345,0.00023734,2]
[389854774,1759872646566,-559.08930847,0.00023738,2]
[389854776,1759872646576,-1000.0,0.00023745,2]
[389854778,1759872646585,-1000.0,0.00023745,2]
[389854780,1759872646595,-1000.0,0.00023745,2]
[389854782,1759872646605,-1000.0,0.00023745,2]
[389854784,1759872646614,-1000.0,0.00023745,2]
[389854786,1759872646624,-800.0,0.00023752,2]
[389854788,1759872646633,-800.0,0.00023757,2]
[389854790,1759872646643,-800.0,0.00023777,2]
[389854792,1759872646652,-1000.0,0.00023796,2]
[389854794,1759872646661,-11201.2742945,0.000238,2]
[389854796,1759872646673,-15232.33956509,0.000238,2]
[389854798,1759872646684,-1880.83698528,0.000238,2]
[389854800,1759872646695,-368.63041273,0.000238,2]
[389854803,1759872646707,-542.09050609,0.000238,2]
[389854807,1759872646737,-1400.3687712,0.000238,2]
[389854844,1759872647343,-400.46335872,0.00017928,2]
[389854845,1759872647354,-151.0,0.00022867,2]
[389854846,1759872647363,-151.0,0.00023141,2]
[389854847,1759872647372,-198.0,0.00023415,2]
[389854848,1759872647381,-680.88143494,0.000238,2]
[389854849,1759872647394,-68077.79521684,0.000238,2]
[389854850,1759872647403,-151.0,0.000238,7]
[389854851,1759872647412,-151.0,0.000238,7]
[389854852,1759872647421,-186.44040318,0.000238,7]
[389854853,1759872647430,-500.0,0.000238,9]
[389854854,1759872647439,-199.752877,0.000238,7]
[389854855,1759872647449,-151.0,0.000238,7]
[389854856,1759872647459,-151.0,0.000238,7]
[389854857,1759872647469,-151.0,0.000238,7]
[389854858,1759872647479,-151.0,0.000238,7]
[389854859,1759872647488,-163.487828,0.000238,7]
[389854860,1759872647498,-151.0,0.000238,7]
[389854861,1759872647507,-151.0,0.000238,7]
[389854862,1759872647516,-151.0,0.000238,7]
[389854863,1759872647525,-4499.9,0.000238,2]
[389854864,1759872647535,-500.0,0.00023802,2]
[389854865,1759872647545,-534.99647613,0.00023805,2]
[389854866,1759872647554,-1000.0,0.00023805,2]
[389854867,1759872647564,-456.92988192,0.00023819,2]
[389854868,1759872647574,-12500.0,0.00023825,7]
[389854869,1759872647583,-242.49061382,0.00023854,24]
[389854870,1759872647592,-11375.88556264,0.00023857,7]
[389854871,1759872647601,-800.0,0.00023873,2]
[389854872,1759872647611,-190.0,0.0002388,8]
[389854873,1759872647621,-800.0,0.00023886,2]
[389854874,1759872647630,-1099.15883905,0.000239,2]
[389854875,1759872647640,-500.0,0.00023944,2]
[389854876,1759872647649,-1000.0,0.00023944,2]
[389854877,1759872647659,-560.78338102,0.00023944,2]
[389854878,1759872647670,-800.0,0.00023945,2]
[389854879,1759872647679,-168.0,0.00023947,2]
[389854880,1759872647690,-168.0,0.00023954,2]
[389854881,1759872647699,-210.57373255,0.00023963,2]
[389854882,1759872647709,-500.0,0.00023963,2]
[389854883,1759872647718,-151.0,0.00023963,2]
[389854884,1759872647727,-500.0,0.00023963,2]
[389854885,1759872647737,-180.15933041,0.00023963,2]
[389854886,1759872647746,-198.0,0.00023963,2]
[389854887,1759872647755,-500.0,0.00023963,2]
[389854888,1759872647764,-500.91123134,0.00023963,2]
[389854889,1759872647774,-269.0,0.00024,2]
[389854890,1759872647784,-160.0,0.00024,7]
[389854891,1759872647793,-234.20938206,0.00024,7]
[389854892,1759872647803,-194.0,0.00024042,2]
[389854893,1759872647812,-1500.0,0.0002407,2]
[389854894,1759872647821,-1500.0,0.0002407,2]
[389854895,1759872647831,-1500.0,0.0002407,2]
[389854896,1759872647840,-1060.0,0.0002407,2]
[389854897,1759872647850,-189.5827141,0.00024082,2]
[389854898,1759872647859,-189.5827141,0.00024082,2]
[389854899,1759872647868,-194.0,0.0002409,2]
[389854900,1759872647878,-800.0,0.0002412,2]
[389854901,1759872647887,-242.49061382,0.00024139,26]
[389854902,1759872647897,-397.5,0.00024183,2]
[389854903,1759872647906,-194.0,0.00024184,2]
[389854904,1759872647916,-1099.15883905,0.000242,2]
[389854905,1759872647926,-4500.0,0.00024209,2]
[389854906,1759872647936,-547.0,0.00024237,2]
[389854907,1759872647945,-151.0,0.00024237,2]
[389854908,1759872647954,-276.59985086,0.00024237,2]
[389854909,1759872647963,-500.0,0.00024237,2]
[389854910,1759872647973,-1500.0,0.00024241,2]
[389854911,1759872647982,-1500.0,0.00024241,2]
[389854912,1759872647991,-596.15905821,0.0002425,7]
[389854913,1759872648001,-700.73698792,0.00024293,2]
[389854914,1759872648010,-1500.0,0.00024293,2]
[389854915,1759872648019,-1500.0,0.00024293,2]
[389854916,1759872648029,-1500.0,0.00024293,2]
[389854917,1759872648038,-1500.0,0.00024293,2]
[389854918,1759872648048,-1500.0,0.00024353,2]
[389854919,1759872648058,-1099.15883905,0.000244,2]
[389854920,1759872648068,-1000.0,0.00024418,20]
[389854921,1759872648077,-242.49061382,0.00024423,27]
[389854922,1759872648087,-168.0,0.00024498,2]
[389854923,1759872648097,-153.324101,0.000245,22]
[389854924,1759872648106,-387.09968957,0.00024511,2]
[389854925,1759872648117,-168.0,0.00024524,2]
[389854926,1759872648126,-194.0,0.00024525,2]
[389854927,1759872648136,-151.0,0.00024587,7]
[389854928,1759872648145,-99925.25,0.00024587,2]
[389854929,1759872648155,-160.0,0.000246,7]
[389854930,1759872648164,-466.49672537,0.00024618,2]
[389854931,1759872648173,-913.30848372,0.00024618,2]
[389854932,1759872648183,-2000.0,0.00024618,2]
[389854933,1759872648193,-1160.0,0.00024618,2]
[389854934,1759872648202,-168.0,0.00024639,2]
[389854935,1759872648211,-150.0,0.00024658,2]
[389854936,1759872648220,-380.0,0.00024658,2]
[389854937,1759872648229,-617.0,0.00024658,2]
[389854938,1759872648241,-1099.15883905,0.000247,2]
[389854939,1759872648254,-242.49061382,0.00024708,29]
[389854940,1759872648264,-5000.0,0.00024757,2]
[389854941,1759872648274,-150.0,0.00024773,2]
[389854942,1759872648283,-420.0,0.00024783,2]
[389854943,1759872648293,-500.0,0.00024789,2]
[389854944,1759872648303,-2000.0,0.000248,2]
[389854945,1759872648311,-2000.0,0.000248,2]
[389854946,1759872648526,-10000.0,0.000248,2]
[389854947,1759872648539,-250.0,0.000248,10]
[389854948,1759872648548,-152594.807718,0.000248,2]
[389854949,1759872648558,-8921.05219449,0.00024801,2]
[389854950,1759872648567,-168.0,0.00024804,2]
[389854951,1759872648579,-1000.0,0.00024841,2]
[389854952,1759872648592,-2000.0,0.00024841,2]
[389854953,1759872648602,-2000.0,0.00024841,2]
[389854954,1759872648611,-1099.15883905,0.000249,2]
[389854955,1759872648621,-250.0,0.000249,10]
[389854956,1759872648630,-132646.22614087,0.000249,2]
[389854957,1759872648642,-1592.73378879,0.000249,2]
[389854958,1759872648654,-23419.22211973,0.000249,2]
[389854959,1759872648664,-122633.16286207,0.000249,2]
[389854960,1759872648676,-735.04964314,0.000249,2]
[389854961,1759873080792,195.21,0.00016983,2]
[389854962,1759873081295,195.2,0.00016983,2]
[389854963,1759873514723,384.3527123,0.00016764,2]
[389854964,1759873680292,-497.74635833,0.0001759,2]
[389854966,1759873705870,718.538119,0.00013699,2]
[389855075,1759873833207,-250.8,0.00017414,2]
[389855165,1759873838519,-246.9463583,0.00017414,2]
[389855167,1759873838528,-150.0,0.00017414,2]
[389855169,1759873838537,-666.56782107,0.0001759,2]
[389855171,1759873838546,-266.97557248,0.0001759,2]
[389855173,1759873838555,-287.0,0.00017672,2]
[389855175,1759873838565,-300.0,0.00017672,2]
[389855176,1759873838574,-1200.0,0.00017672,2]
[389855178,1759873838583,-500.0,0.00017673,2]
[389855180,1759873838593,-500.0,0.00017673,2]
[389855183,1759873838603,-500.0,0.00017673,2]
[389855184,1759873838612,-500.0,0.00017673,2]
[389855186,1759873838621,-500.0,0.00017673,2]
[389855188,1759873838630,-500.0,0.00017673,2]
[389855190,1759873838639,-389.0,0.00017686,2]
[389855192,1759873838648,-334.2713136,0.00017687,2]
[389855194,1759873838657,-191.21666148,0.00017687,2]
[389855196,1759873838666,-290.89964862,0.00017687,2]
[389855198,1759873838675,-500.0,0.00017687,2]
[389855200,1759873838684,-500.0,0.00017687,2]
[389855202,1759873838695,-500.0,0.00017687,2]
[389855204,1759873838713,-503.51794159,0.00017687,2]
[389855206,1759873838728,-500.0,0.00017687,2]
[389855208,1759873838738,-500.0,0.00017687,2]
[389855210,1759873838747,-3798.74388323,0.00017688,2]
[389855212,1759873838759,-13232.07343135,0.00017688,2]
[389855215,1759873838772,-264.05001818,0.00017688,2]
[389855795,1759873844125,-302.0,0.00017688,2]
[389855798,1759873844137,-14431.10358731,0.00017688,2]
[389856013,1759873846458,-1799.82798,0.00017688,2]
[389858540,1759874883897,410.98,0.00016983,2]
[389858575,1759875032730,-150.0,0.00017573,2]
[389858577,1759875032742,-300.0,0.00017586,2]
[389858579,1759875032753,-420.0,0.00017586,2]
[389858581,1759875032764,-500.0,0.00017587,2]
[389858583,1759875032775,-500.0,0.00017587,2]
[389858586,1759875032786,-161.44223571,0.00017587,2]
[389858588,1759875032797,-500.0,0.00017587,2]
[389858590,1759875032808,-500.0,0.00017587,2]
[389858592,1759875032819,-557.88154673,0.00017587,2]
[389858594,1759875032830,-500.0,0.00017587,2]
[389858597,1759875032842,-399.37621756,0.00017587,2]
[389858599,1759875032858,-100.62378244,0.00017587,2]
[389858602,1759875032870,-415.94013114,0.00017587,2]
[389858604,1759875032881,-500.0,0.00017587,2]
[389858606,1759875032893,-500.0,0.00017587,2]
[389858608,1759875032904,-500.0,0.00017587,2]
[389858610,1759875032915,-500.0,0.00017587,2]
[389858614,1759875032926,-500.0,0.00017587,2]
[389858618,1759875032937,-500.0,0.00017587,2]
[389858620,1759875032949,-500.0,0.00017587,2]
[389858622,1759875032959,-500.0,0.00017587,2]
[389858624,1759875032969,-500.0,0.00017587,2]
[389858626,1759875032981,-565.69350514,0.00017587,2]
[389858629,1759875032993,-276.81148607,0.00017587,2]
[389859232,1759875038850,-223.18851393,0.00017587,2]
[389859234,1759875038859,-500.0,0.00017587,2]
[389859236,1759875038870,-500.0,0.00017587,2]
[389859238,1759875038880,-500.0,0.00017587,2]
[389859240,1759875038890,-500.0,0.00017587,2]
[389859242,1759875038899,-500.0,0.00017587,2]
[389859244,1759875038914,-500.0,0.00017587,2]
[389859246,1759875038925,-500.0,0.00017587,2]
[389859248,1759875038934,-500.0,0.00017587,2]
[389859250,1759875038944,-500.0,0.00017587,2]
[389859252,1759875038953,-500.0,0.00017587,2]
[389859253,1759875038963,-500.0,0.00017587,2]
[389859255,1759875038972,-500.0,0.00017587,2]
[389859257,1759875038981,-90096.46466395,0.00017588,2]
[389859259,1759875038990,-166.6724881,0.00017941,2]
[389859261,1759875039000,-300.0,0.00018041,2]
[389859263,1759875039010,-300.0,0.00018041,2]
[389859265,1759875039019,-300.0,0.00018041,2]
[389859267,1759875039028,-300.0,0.00018041,2]
[389859269,1759875039038,-300.0,0.00018041,2]
[389859271,1759875039047,-300.0,0.00018041,2]
[389859273,1759875039057,-300.0,0.00018041,2]
[389859275,1759875039067,-300.0,0.00018041,2]
[389859277,1759875039076,-300.0,0.00018041,2]
[389859278,1759875039085,-300.0,0.00018041,2]
[389859280,1759875039094,-300.0,0.00018041,2]
[389859282,1759875039104,-300.0,0.00018041,2]
[389859284,1759875039113,-300.0,0.00018041,2]
[389859286,1759875039122,-300.0,0.00018041,2]
[389859288,1759875039131,-300.0,0.00018041,2]
[389859290,1759875039140,-600.0,0.00018041,2]
[389859292,1759875039149,-500.0,0.00018041,2]
[389859294,1759875039158,-500.0,0.00018043,2]
[389859296,1759875039168,-500.0,0.00018043,2]
[389859298,1759875039177,-500.0,0.00018043,2]
[389859300,1759875039186,-514.020506,0.00018055,2]
[389859302,1759875039195,-172.5,0.00018173,2]
[389859304,1759875039204,-500.0,0.0001819,2]
[389859306,1759875039213,-666.0,0.00018267,2]
[389859320,1759875039435,-500.0,0.00018315,2]
[389859321,1759875039447,-1000.0,0.00018356,2]
[389859322,1759875039456,-233.98991952,0.00018462,2]
[389859323,1759875039465,-500.0,0.00018463,2]
[389859324,1759875039474,-5045.2717657,0.00018477,2]
[389859325,1759875039484,-502.56607536,0.00018591,2]
[389859326,1759875039493,-500.0,0.00018591,2]
[389859327,1759875039502,-1000.0,0.0001863,2]
[389859328,1759875039511,-500.0,0.00018737,2]
[389859329,1759875039520,-195.0,0.00018773,2]
[389859330,1759875039529,-1000.0,0.00018904,2]
[389859331,1759875039539,-500.0,0.00019011,2]
[389859332,1759875039548,-1000.0,0.00019178,2]
[389859333,1759875039557,-420.0,0.00019196,2]
[389859334,1759875039566,-500.0,0.00019285,2]
[389859335,1759875039575,-217.5,0.00019373,2]
[389859336,1759875039585,-481.25562608,0.00019452,2]
[389859337,1759875039594,-500.0,0.00019459,2]
[389859338,1759875039603,-500.0,0.00019559,2]
[389859339,1759875039612,-1226.53431149,0.000196,2]
[389859340,1759875039621,-160.0,0.00019629,2]
[389859341,1759875039630,-160.0,0.00019642,2]
[389859342,1759875039640,-533.72506543,0.00019642,2]
[389859343,1759875039649,-160.0,0.00019642,2]
[389859344,1759875039658,-402.02512307,0.00019642,2]
[389859345,1759875039667,-234.20938206,0.00019642,2]
[389859346,1759875039677,-160.0,0.00019642,2]
[389859347,1759875039686,-160.0,0.00019642,2]
[389859348,1759875039695,-1226.53431149,0.000198,2]
[389859349,1759875039704,-500.0,0.00019833,2]
[389859350,1759875039713,-720.0,0.00019845,2]
[389859351,1759875039723,-240.0,0.00019973,2]
[389859352,1759875039733,-1226.53431149,0.0002,2]
[389859353,1759875039742,-500.0,0.00020107,2]
[389859354,1759875039752,-260.0,0.00020177,2]
[389859355,1759875039761,-718.538119,0.00020187,2]
[389859356,1759875039770,-1226.53431149,0.000202,2]
[389859357,1759875039780,-500.0,0.00020381,2]
[389859358,1759875039789,-1226.53431149,0.000204,2]
[389859359,1759875039798,-262.5,0.00020573,2]
[389859360,1759875039808,-1226.53431149,0.000206,2]
[389859361,1759875039817,-360.0,0.00020724,2]
[389859362,1759875039826,-1226.53431149,0.000208,2]
[389859363,1759875039835,-587.0,0.00020954,2]
[389859364,1759875039844,-1226.53431149,0.00021,2]
[389859365,1759875039854,-285.0,0.00021173,2]
[389859366,1759875039863,-1226.53431149,0.000212,2]
[389859367,1759875039873,-460.0,0.00021272,2]
[389859368,1759875039881,-291.0,0.00021397,4]
[389859369,1759875039891,-1226.53431149,0.000214,2]
[389859370,1759875039900,-307.5,0.00021773,2]
[389859371,1759875039910,-560.0,0.0002182,2]
[389859372,1759875039919,-864.0,0.00021829,20]
[389859373,1759875039930,-167.83565487,0.00021993,2]
[389859374,1759875039939,-500.0,0.00022147,2]
[389859375,1759875039950,-250.0,0.00022214,2]
[389859376,1759875039959,-212.814,0.00022214,2]
[389859377,1759875039968,-150.0,0.00022214,2]
[389859378,1759875039978,-229.054,0.00022214,2]
[389859379,1759875039988,-250.0,0.00022214,2]
[389859380,1759875039997,-263.486,0.00022214,2]